[Event "76th Montenegro Championship 2024"]
[Site "Podgorica"]
[Date "2024.02.14"]
[Round "10.9"]
[White "Zherebtsova, Alexandra"]
[Black "Sukovic, Andrej"]
[Result "1/2-1/2"]
[ECO "E46"]
[WhiteElo "2270"]
[BlackElo "2339"]
[Annotator "RC"]
[PlyCount "105"]
[EventDate "2024.02.06"]
[EventType "swiss"]
[EventCountry "MNE"]
[SourceTitle "playchess.com"]
[Source "ChessBase"]
[SourceQuality "1"]
[TimeControl "40/5400+30:1800+30"]

1. d4 {[%emt 0:10:56]} Nf6 {[%emt 0:00:09]} 2. c4 {[%emt 0:00:04]} e6 {[%emt 0:00:09]} 3. Nc3 {[%emt 0:02:10]} Bb4 {[%emt 0:00:10]} 4. e3 {[%emt 0:01:13]} O-O {[%emt 0:00:09]} 5. Bd2 {[%emt 0:00:29]} d6 {[%emt 0:08:06]} 6. Nf3 {[%emt 0:03:38]} Re8 {[%emt 0:07:04]} 7. a3 {[%emt 0:07:08]} Bxc3 {[%emt 0:00:09]} 8. Bxc3 {[%emt 0:00:03]} Ne4 {[%emt 0:00:10]} 9. Qc2 {[%emt 0:01:54]} Nxc3 {[%emt 0:00:13]} 10. Qxc3 {[%emt 0:00:07]} Qe7 {[%emt 0:00:05]} 11. Rd1 {[%emt 0:09:56]} Nd7 {[%emt 0:04:58]} 12. Be2 {[%emt 0:01:05]} e5 {[%emt 0:00:50]} 13. dxe5 {[%emt 0:01:17]} dxe5 {[%emt 0:00:43]} 14. O-O {[%emt 0:01:32]} a5 {[%emt 0:13:03]} 15. b4 {[%emt 0:02:29]} axb4 {[%emt 0:02:06]} 16. axb4 {[%emt 0:00:03]} Nf6 {[%emt 0:04:28]} 17. Ra1 {[%emt 0:03:37]} Bg4 {[%emt 0:02:00]} 18. Rxa8 {[%emt 0:04:36]} Rxa8 {[%emt 0:01:00]} 19. Ra1 {[%emt 0:01:52]} Rxa1+ {[%emt 0:05:02]} 20. Qxa1 {[%emt 0:00:01]} Qxb4 {[%emt 0:00:14]} 21. Qa8+ {[%emt 0:00:17]} Qf8 {[%emt 0:00:06]} 22. Qxb7 {[%emt 0:00:24]} e4 {[%emt 0:00:04]} 23. Nd4 {[%emt 0:01:45]} c5 {[%emt 0:00:07]} 24. Bxg4 {[%emt 0:02:21]} cxd4 {[%emt 0:00:14]} 25. Bd1 {[%emt 0:07:47]} dxe3 {[%emt 0:19:37]} 26. fxe3 {[%emt 0:03:33]} Qd8 {[%emt 0:01:44]} 27. Be2 {[%emt 0:05:29]} g6 {[%emt 0:00:18]} 28. Qb2 {[%emt 0:04:23]} Nd7 {[%emt 0:02:50]} 29. Qa3 {[%emt 0:06:27]} Qf8 {[%emt 0:04:10]} 30. Qa7 {[%emt 0:01:54]} Qd6 {[%emt 0:00:21]} 31. Qa8+ {[%emt 0:00:30]} Kg7 {[%emt 0:01:08]} 32. Qxe4 {[%emt 0:00:30]} Kf8 {[%emt 0:01:52]} 33. Qd4 {[%emt 0:01:54]} Ke7 {[%emt 0:00:03]} 34. Bf3 {[%emt 0:01:47]} Qb4 {[%emt 0:03:06]} 35. h3 {[%emt 0:01:34]} Qb1+ {[%emt 0:00:18]} 36. Kh2 {[%emt 0:02:29]} Qb8+ {[%emt 0:01:11]} 37. Kg1 {[%emt 0:07:44]} Qd6 {[%emt 0:02:39]} 38. Bd5 {[%emt 0:01:00]} Qf6 {[%emt 0:00:46]} 39. c5 {[%emt 0:01:13]} Ne5 {[%emt 0:01:35]} 40. c6 {[%emt 0:00:00]} Qd6 {[%emt 0:00:00]} 41. Qa7+ {[%emt 0:04:37]} Kd8 {[%emt 0:00:50]} 42. Qa8+ {[%emt 0:03:10]} Ke7 {[%emt 0:06:21]} 43. Qb7+ {[%emt 0:00:48]} Kd8 {[%emt 0:01:25]} 44. Qb6+ {[%emt 0:01:56]} Ke8 {[%emt 0:05:03]} 45. Qb5 {[%emt 0:08:17]} Ke7 {[%emt 0:02:28]} 46. Qb3 {[%emt 0:02:13]} Qc5 {[%emt 0:06:24]} 47. Kh2 {[%emt 0:05:29]} h5 {[%emt 0:07:55]} 48. Qb7+ {[%emt 0:04:58]} Kd6 {[%emt 0:00:54]} 49. e4 {[%emt 0:03:28]} Nf3+ {[%emt 0:01:28]} 50. Kg3 {[%emt 0:01:23]} h4+ {[%emt 0:00:05]} 51. Kxf3 {[%emt 0:00:53]} Qc3+ {[%emt 0:00:06]} 52. Ke2 {[%emt 0:00:34]} Qc2+ {[%emt 0:00:02]} 53. Ke1 {[%emt 0:02:03]} 1/2-1/2

[Event "76th Montenegro Championship 2024"]
[Site "Podgorica"]
[Date "2024.02.14"]
[Round "10.10"]
[White "Pobor, Milo"]
[Black "Vujosevic, Vladimir"]
[Result "0-1"]
[ECO "C57"]
[WhiteElo "2201"]
[BlackElo "2335"]
[Annotator "RC"]
[PlyCount "56"]
[EventDate "2024.02.06"]
[EventType "swiss"]
[EventCountry "MNE"]
[SourceTitle "playchess.com"]
[Source "ChessBase"]
[SourceQuality "1"]
[TimeControl "40/5400+30:1800+30"]

1. e4 {[%emt 0:08:42]} e5 {[%emt 0:00:20]} 2. Nf3 {[%emt 0:00:07]} Nc6 {[%emt 0:00:22]} 3. Bc4 {[%emt 0:00:04]} Nf6 {[%emt 0:00:20]} 4. Ng5 {[%emt 0:01:01]} d5 {[%emt 0:04:03]} 5. exd5 {[%emt 0:00:39]} b5 {[%emt 0:00:44]} 6. Bf1 {[%emt 0:01:51]} Nxd5 {[%emt 0:04:00]} 7. Qf3 {[%emt 0:06:41]} Qd7 {[%emt 0:01:18]} 8. Bxb5 {[%emt 0:02:06]} Bb7 {[%emt 0:01:25]} 9. O-O {[%emt 0:05:51]} f6 {[%emt 0:08:30]} 10. c4 {[%emt 0:26:51]} Nb6 {[%emt 0:15:39]} 11. d4 {[%emt 0:12:48]} a6 {[%emt 0:05:55]} 12. Bxc6 {[%emt 0:00:26]} Bxc6 {[%emt 0:00:15]} 13. d5 {[%emt 0:00:04]} Bb7 {[%emt 0:00:24]} 14. Ne4 {[%emt 0:00:04]} Nxc4 {[%emt 0:00:48]} 15. Nbc3 {[%emt 0:00:25]} Nb6 {[%emt 0:16:41]} 16. Rd1 {[%emt 0:01:25]} Rd8 {[%emt 0:04:25]} 17. Qe2 {[%emt 0:02:57]} Qf7 {[%emt 0:02:28]} 18. Be3 {[%emt 0:09:21]} Nxd5 {[%emt 0:02:15]} 19. Qc4 {[%emt 0:00:41]} Be7 {[%emt 0:05:05]} 20. Nxd5 {[%emt 0:09:21]} Bxd5 {[%emt 0:01:40]} 21. Qxc7 {[%emt 0:00:57]} Bxe4 {[%emt 0:05:03]} 22. Bc5 {[%emt 0:00:18]} Bd3 {[%emt 0:06:43]} 23. Qc6+ {[%emt 0:03:45]} Kf8 {[%emt 0:00:15]} 24. Bb6 {[%emt 0:00:44]} Qd5 {[%emt 0:01:10]} 25. Qc3 {[%emt 0:00:48]} Rd7 {[%emt 0:00:27]} 26. Qc8+ {[%emt 0:01:06]} Bd8 {[%emt 0:00:18]} 27. Rac1 {[%emt 0:00:06]} Kf7 {[%emt 0:03:49]} 28. Rc5 {[%emt 0:01:20]} Qb7 {[%emt 0:00:30]} 0-1

[Event "76th Montenegro Championship 2024"]
[Site "Podgorica"]
[Date "2024.02.14"]
[Round "10.11"]
[White "Scekic, Veljko"]
[Black "Skvortsov, Andrei"]
[Result "1-0"]
[ECO "B54"]
[WhiteElo "2206"]
[BlackElo "2307"]
[Annotator "RC"]
[PlyCount "120"]
[EventDate "2024.02.06"]
[EventType "swiss"]
[EventCountry "MNE"]
[SourceTitle "playchess.com"]
[Source "ChessBase"]
[SourceQuality "1"]
[TimeControl "40/5400+30:1800+30"]

1. e4 {[%emt 0:00:54]} c5 {[%emt 0:01:48]} 2. Nf3 {[%emt 0:00:08]} a6 {[%emt 0:00:18]} 3. d4 {[%emt 0:01:29]} cxd4 {[%emt 0:00:10]} 4. Nxd4 {[%emt 0:00:06]} d6 {[%emt 0:00:25]} 5. c4 {[%emt 0:01:55]} e5 {[%emt 0:01:42]} 6. Nc2 {[%emt 0:02:46]} Nc6 {[%emt 0:06:46]} 7. Nc3 {[%emt 0:01:04]} Be6 {[%emt 0:01:52]} 8. Be3 {[%emt 0:01:16]} g6 {[%emt 0:01:16]} 9. Be2 {[%emt 0:00:15]} Bh6 {[%emt 0:03:18]} 10. Bxh6 {[%emt 0:01:10]} Nxh6 {[%emt 0:00:04]} 11. Qd2 {[%emt 0:00:04]} Ng8 {[%emt 0:02:46]} 12. O-O-O {[%emt 0:00:34]} Qb6 {[%emt 0:06:42]} 13. f4 {[%emt 0:02:02]} O-O-O {[%emt 0:01:37]} 14. Nd5 {[%emt 0:05:59]} Qa5 {[%emt 0:02:44]} 15. Qxa5 {[%emt 0:05:02]} Nxa5 {[%emt 0:00:01]} 16. fxe5 {[%emt 0:01:50]} dxe5 {[%emt 0:00:22]} 17. Nb6+ {[%emt 0:00:27]} Kc7 {[%emt 0:00:01]} 18. Rxd8 {[%emt 0:00:41]} Kxd8 {[%emt 0:00:01]} 19. Rd1+ {[%emt 0:00:15]} Ke8 {[%emt 0:00:35]} 20. b4 {[%emt 0:01:32]} Nc6 {[%emt 0:00:10]} 21. Nd5 {[%emt 0:00:37]} Nh6 {[%emt 0:04:09]} 22. a4 {[%emt 0:04:24]} Kf8 {[%emt 0:01:39]} 23. b5 {[%emt 0:00:44]} Nb8 {[%emt 0:00:20]} 24. Nb6 {[%emt 0:03:55]} Ke7 {[%emt 0:00:12]} 25. Nb4 {[%emt 0:01:30]} f5 {[%emt 0:05:26]} 26. Bf3 {[%emt 0:05:43]} f4 {[%emt 0:00:14]} 27. N4d5+ {[%emt 0:01:45]} Kf7 {[%emt 0:00:24]} 28. Nc7 {[%emt 0:01:05]} Ke7 {[%emt 0:01:04]} 29. c5 {[%emt 0:04:01]} axb5 {[%emt 0:00:02]} 30. axb5 {[%emt 0:00:08]} Nd7 {[%emt 0:01:33]} 31. Nxe6 {[%emt 0:11:02]} Nxb6 {[%emt 0:00:03]} 32. cxb6 {[%emt 0:12:08]} Kxe6 {[%emt 0:00:04]} 33. Kb2 {[%emt 0:00:10]} Rc8 {[%emt 0:03:18]} 34. Kb3 {[%emt 0:06:10]} g5 {[%emt 0:06:56]} 35. h3 {[%emt 0:00:02]} Rc5 {[%emt 0:00:51]} 36. Be2 {[%emt 0:00:34]} Ke7 {[%emt 0:01:01]} 37. Bc4 {[%emt 0:01:06]} Rc8 {[%emt 0:00:38]} 38. Bd5 {[%emt 0:00:27]} Rd8 {[%emt 0:02:50]} 39. Rc1 {[%emt 0:02:51]} Rd7 {[%emt 0:00:20]} 40. Rc8 {[%emt 0:00:00]} Nf7 {[%emt 0:00:00]} 41. Bc6 {[%emt 0:04:11]} Rd3+ {[%emt 0:03:11]} 42. Kc2 {[%emt 0:00:11]} Rg3 {[%emt 0:00:33]} 43. Rc7+ {[%emt 0:01:09]} Kf6 {[%emt 0:00:10]} 44. Rxb7 {[%emt 0:01:35]} Rxg2+ {[%emt 0:00:25]} 45. Kd3 {[%emt 0:00:53]} Nd6 {[%emt 0:06:24]} 46. Rd7 {[%emt 0:01:07]} Rg3+ {[%emt 0:00:57]} 47. Ke2 {[%emt 0:00:12]} Ke6 {[%emt 0:00:41]} 48. b7 {[%emt 0:00:03]} Nxb7 {[%emt 0:00:31]} 49. Rxb7 {[%emt 0:00:04]} h5 {[%emt 0:00:14]} 50. Rh7 {[%emt 0:01:00]} g4 {[%emt 0:00:21]} 51. Rxh5 {[%emt 0:02:12]} Re3+ {[%emt 0:00:22]} 52. Kf1 {[%emt 0:02:25]} g3 {[%emt 0:00:04]} 53. Rg5 {[%emt 0:01:23]} Rf3+ {[%emt 0:00:36]} 54. Kg1 {[%emt 0:00:39]} Rc3 {[%emt 0:00:08]} 55. b6 {[%emt 0:05:45]} Rc1+ {[%emt 0:00:04]} 56. Kg2 {[%emt 0:00:07]} Rc2+ {[%emt 0:00:07]} 57. Kf1 {[%emt 0:00:21]} Rc1+ {[%emt 0:00:28]} 58. Ke2 {[%emt 0:03:04]} Rc2+ {[%emt 0:02:38]} 59. Kd3 {[%emt 0:04:03]} Rb2 {[%emt 0:02:07]} 60. b7 {[%emt 0:00:19]} f3 {[%emt 0:00:34]} 1-0

[Event "76th Montenegro Championship 2024"]
[Site "Podgorica"]
[Date "2024.02.14"]
[Round "10.12"]
[White "Nikac, Predrag"]
[Black "Vujovic, Savo"]
[Result "0-1"]
[ECO "C50"]
[WhiteElo "2304"]
[BlackElo "2137"]
[Annotator "RC"]
[PlyCount "70"]
[EventDate "2024.02.06"]
[EventType "swiss"]
[EventCountry "MNE"]
[SourceTitle "playchess.com"]
[Source "ChessBase"]
[SourceQuality "1"]
[TimeControl "40/5400+30:1800+30"]

1. e4 {[%emt 0:00:34]} e5 {[%emt 0:06:41]} 2. Nf3 {[%emt 0:03:35]} Nc6 {[%emt 0:00:09]} 3. Bc4 {[%emt 0:00:14]} Bc5 {[%emt 0:00:09]} 4. O-O {[%emt 0:00:18]} Nf6 {[%emt 0:00:45]} 5. d3 {[%emt 0:00:37]} a6 {[%emt 0:00:31]} 6. Be3 {[%emt 0:00:46]} d6 {[%emt 0:06:25]} 7. a4 {[%emt 0:01:33]} Bg4 {[%emt 0:03:39]} 8. Nbd2 {[%emt 0:00:17]} O-O {[%emt 0:03:19]} 9. h3 {[%emt 0:01:16]} Bh5 {[%emt 0:06:58]} 10. Re1 {[%emt 0:04:23]} Nd4 {[%emt 0:06:08]} 11. Bxd4 {[%emt 0:01:46]} Bxd4 {[%emt 0:10:09]} 12. c3 {[%emt 0:01:50]} Ba7 {[%emt 0:00:26]} 13. Nf1 {[%emt 0:00:30]} c6 {[%emt 0:06:33]} 14. Ng3 {[%emt 0:02:39]} Bg6 {[%emt 0:00:12]} 15. a5 {[%emt 0:00:08]} Nh5 {[%emt 0:05:06]} 16. Nxh5 {[%emt 0:09:03]} Bxh5 {[%emt 0:00:05]} 17. g4 {[%emt 0:02:03]} Bg6 {[%emt 0:00:23]} 18. Kg2 {[%emt 0:03:29]} d5 {[%emt 0:11:26]} 19. Bb3 {[%emt 0:00:47]} dxe4 {[%emt 0:00:05]} 20. dxe4 {[%emt 0:00:23]} Qf6 {[%emt 0:07:23]} 21. Qe2 {[%emt 0:04:25]} Rad8 {[%emt 0:00:52]} 22. Rad1 {[%emt 0:00:11]} h5 {[%emt 0:03:09]} 23. Ng1 {[%emt 0:01:42]} Qf4 {[%emt 0:08:31]} 24. Qf3 {[%emt 0:03:36]} Rxd1 {[%emt 0:00:16]} 25. Bxd1 {[%emt 0:14:27]} Qd2 {[%emt 0:00:09]} 26. Qe2 {[%emt 0:00:17]} Rd8 {[%emt 0:00:35]} 27. gxh5 {[%emt 0:08:20]} Bxe4+ {[%emt 0:00:17]} 28. f3 {[%emt 0:05:07]} Qg5+ {[%emt 0:00:33]} 29. Kh1 {[%emt 0:00:25]} Rd2 {[%emt 0:00:18]} 30. fxe4 {[%emt 0:02:45]} Rxe2 {[%emt 0:00:08]} 31. Bxe2 {[%emt 0:00:05]} Qg3 {[%emt 0:00:10]} 32. Nf3 {[%emt 0:01:52]} Qxh3+ {[%emt 0:00:36]} 33. Nh2 {[%emt 0:00:18]} Bf2 {[%emt 0:01:05]} 34. Bg4 {[%emt 0:03:06]} Qh4 {[%emt 0:00:10]} 35. Re2 {[%emt 0:00:50]} Qg3 {[%emt 0:01:21]} 0-1

[Event "76th Montenegro Championship 2024"]
[Site "Podgorica"]
[Date "2024.02.14"]
[Round "10.13"]
[White "Ratkovic, Milorad"]
[Black "Draganic, Veljko"]
[Result "0-1"]
[ECO "B12"]
[WhiteElo "2063"]
[BlackElo "2323"]
[Annotator "TA"]
[PlyCount "44"]
[EventDate "2024.02.06"]
[EventType "swiss"]
[EventCountry "MNE"]
[SourceTitle "playchess.com"]
[Source "ChessBase"]
[SourceQuality "1"]
[TimeControl "40/5400+30:1800+30"]

{[%evp 9,44,13,51,16,50,29,62,23,22,0,36,34,35,37,162,166,161,162,166,-18,-15,0,-19,-49,-43,-48,-31,-120,-11,-162,-165,-162,-166,-173,-191,-365,-370]} 1. e4 {[%emt 0:00:05]} c6 {[%emt 0:02:56]} 2. d4 {[%emt 0:00:11]} d5 {[%emt 0:00:06]} 3. e5 {[%emt 0:00:21]} c5 {[%emt 0:00:02]} 4. dxc5 {[%emt 0:00:14]} e6 {[%emt 0:00:04]} 5. Bd3 {[%emt 0:00:15]} Bxc5 {[%emt 0:00:08]} 6. Qg4 {[%emt 0:01:15]} Ne7 $1 {[%emt 1:30:14]} 7. Nf3 {[%emt 0:00:20]} Nbc6 {[%emt 0:00:00]} 8. O-O {[%emt 0:00:49] White is slightly better.} Ng6 {[%emt 0:00:00]} 9. Nc3 {[%emt 0:06:31]} Nb4 {[%emt 0:00:00]} 10. Bg5 {[%emt 0:08:00]} Qc7 {[%emt 0:00:00]} 11. Bxg6 {[%emt 0:06:50]} fxg6 {[%emt 0:00:00]} (11... hxg6 $14 12. Qg3 Nc6) 12. a3 $1 $18 {[%emt 0:02:33]} ({Resist} 12. Nb5 $6 Qd7 13. a4 (13. Nd6+ Bxd6 14. exd6 Qxd6 $14) 13... a6 $14) 12... Nc6 {[%emt 0:00:00][%cal Oe8g8] [#]} 13. b4 $1 {[%emt 0:02:07]} Nxe5 {[%emt 0:00:00] [#]} 14. Nxe5 $2 {[%emt 0:00:15]} ({Only move:} 14. Nb5 $1 $18 {[%cal Rb5c7]} Nxf3+ 15. Qxf3) 14... Qxe5 $11 {[%emt 0:00:00]} 15. Nb5 {[%emt 0:00:52]} (15. bxc5 {simplifies} Qxc3 16. Qb4 Qxb4 17. axb4 O-O 18. Bd2) 15... Bd6 {[%emt 0:00:00][%csl Gd6][%cal Re5h2]} 16. g3 {[%emt 0:08:19]} Bb8 $1 {[%emt 0:00:00]} (16... O-O 17. Rae1 Qf5 18. Qxf5 Rxf5 19. Nxd6) 17. c4 {[%emt 0:03:53]} O-O {[%emt 0:00:00] Hoping for ...dxc4.} 18. Rfe1 {[%emt 0:02:34]} (18. Be7 $1 $15 Qf5 19. Qxf5 Rxf5 20. cxd5) 18... Qb2 {[%emt 0:00:00]} (18... h5 $17 19. Qh4 Qf5) 19. Qe2 {[%emt 0:02:20]} (19. Be3 $11 {and White is okay.}) 19... Qxe2 $19 {[%emt 0:00:00]} 20. Rxe2 {[%emt 0:00:06]} dxc4 {[%emt 0:00:00] ...Rf5 would now be deadly.} 21. Nc3 {[%emt 0:00:45]} e5 {[%emt 0:00:00]} 22. Rd1 $2 {[%emt 0:01:41]} (22. Ne4) 22... Bg4 {[%emt 0:00:00] Black used his chance.   Weighted Error Value: White=0.39/Black=0.22 (precise) .  Missed win:     	White=1     	---        Mistake:       	White=3     	Black=2      Inaccurate:     	White=2     	Black=2      OK:         	White=3     	Black=6      Best:        	---       	Black=2      Strong:       	White=2     	Black=2} 0-1

[Event "76th Montenegro Championship 2024"]
[Site "Podgorica"]
[Date "2024.02.15"]
[Round "10.14"]
[White "Miletic, Vuk"]
[Black "Milovic, Ilija"]
[Result "1/2-1/2"]
[ECO "D03"]
[WhiteElo "2213"]
[BlackElo "1823"]
[Annotator "RC"]
[PlyCount "75"]
[EventDate "2024.02.06"]
[EventType "swiss"]
[EventCountry "MNE"]
[SourceTitle "playchess.com"]
[Source "ChessBase"]
[SourceQuality "1"]
[TimeControl "40/5400+30:1800+30"]

1. d4 {[%emt 0:07:14]} d5 {[%emt 0:00:15]} 2. Nf3 {[%emt 0:00:20]} Nf6 {[%emt 0:00:22]} 3. Bg5 {[%emt 0:00:14]} e6 {[%emt 0:00:41]} 4. e3 {[%emt 0:00:16]} Be7 {[%emt 0:01:05]} 5. Nbd2 {[%emt 0:00:10]} O-O {[%emt 0:02:21]} 6. Bd3 {[%emt 0:01:40]} b6 {[%emt 0:01:15]} 7. Qe2 {[%emt 0:00:27]} Bb7 {[%emt 0:00:54]} 8. h4 {[%emt 0:04:02]} Nbd7 {[%emt 0:07:00]} 9. c3 {[%emt 0:09:50]} c5 {[%emt 0:03:10]} 10. Bf4 {[%emt 0:13:46]} Ne4 {[%emt 0:07:58]} 11. Ng5 {[%emt 0:00:15]} Ndf6 {[%emt 0:00:40]} 12. Be5 {[%emt 0:01:26]} h6 {[%emt 0:05:24]} 13. Ngxe4 {[%emt 0:18:03]} Nxe4 {[%emt 0:13:40]} 14. Bxe4 {[%emt 0:05:39]} dxe4 {[%emt 0:00:37]} 15. Qg4 {[%emt 0:00:22]} Bf6 {[%emt 0:06:56]} 16. Bxf6 {[%emt 0:05:29]} Qxf6 {[%emt 0:00:13]} 17. Nxe4 {[%emt 0:00:19]} Qf5 {[%emt 0:01:16]} 18. Qxf5 {[%emt 0:01:25]} exf5 {[%emt 0:00:02]} 19. Nd6 {[%emt 0:01:33]} Bxg2 {[%emt 0:01:12]} 20. Rg1 {[%emt 0:00:15]} Be4 {[%emt 0:00:48]} 21. dxc5 {[%emt 0:14:00]} bxc5 {[%emt 0:00:22]} 22. O-O-O {[%emt 0:03:33]} Rfd8 {[%emt 0:05:08]} 23. Rg3 {[%emt 0:04:10]} Rd7 {[%emt 0:01:11]} 24. f3 {[%emt 0:02:21]} Rad8 {[%emt 0:00:16]} 25. fxe4 {[%emt 0:00:05]} Rxd6 {[%emt 0:01:26]} 26. Rxd6 {[%emt 0:00:06]} Rxd6 {[%emt 0:00:02]} 27. exf5 {[%emt 0:00:00]} g6 {[%emt 0:06:56]} 28. Kc2 {[%emt 0:01:48]} Kg7 {[%emt 0:33:20]} 29. b4 {[%emt 0:03:51]} Kf6 {[%emt 0:00:00]} 30. fxg6 {[%emt 0:00:22]} fxg6 {[%emt 0:00:00]} 31. Rg4 {[%emt 0:01:37]} cxb4 {[%emt 0:00:00]} 32. cxb4 {[%emt 0:00:06]} Ra6 {[%emt 0:00:00]} 33. Kb3 {[%emt 0:00:46]} Re6 {[%emt 0:00:00]} 34. e4 {[%emt 0:00:52]} h5 {[%emt 0:00:00]} 35. Rf4+ {[%emt 0:00:06]} Ke5 {[%emt 0:00:00]} 36. Rf7 {[%emt 0:00:30]} a6 {[%emt 0:00:00]} 37. a4 {[%emt 0:01:13]} Kxe4 {[%emt 0:00:00]} 38. b5 {[%emt 0:00:40]} 1/2-1/2

[Event "76th Montenegro Championship 2024"]
[Site "Podgorica"]
[Date "2024.02.14"]
[Round "10.15"]
[White "Koljevic, Nikolina"]
[Black "Popovic, Mateja"]
[Result "0-1"]
[ECO "B48"]
[WhiteElo "1974"]
[BlackElo "1880"]
[Annotator "NA RC"]
[PlyCount "64"]
[EventDate "2024.02.06"]
[EventType "swiss"]
[EventCountry "MNE"]
[SourceTitle "playchess.com"]
[Source "ChessBase"]
[SourceQuality "1"]
[TimeControl "40/5400+30:1800+30"]

1. e4 {[%emt 0:07:48]} c5 {[%emt 0:00:18]} 2. Nf3 {[%emt 0:00:06]} e6 {[%emt 0:00:03]} 3. d4 {[%emt 0:00:12]} cxd4 {[%emt 0:00:22]} 4. Nxd4 {[%emt 0:00:06]} Nc6 {[%emt 0:00:22]} 5. Nc3 {[%emt 0:00:21]} Qc7 {[%emt 0:00:11]} 6. Be3 {[%emt 0:00:23]} a6 {[%emt 0:00:48]} 7. Qf3 {[%emt 0:00:37]} Nf6 {[%emt 0:00:40]} 8. O-O-O {[%emt 0:00:23]} Ne5 {[%emt 0:01:37]} 9. Qg3 {[%emt 0:00:50]} b5 {[%emt 0:00:26]} 10. Nf3 {[%emt 0:11:55]} d6 {[%emt 0:03:26]} 11. Nxe5 {[%emt 0:00:05]} dxe5 {[%emt 0:00:06]} 12. f3 {[%emt 0:00:16]} Bd7 {[%emt 0:15:26]} 13. Bd4 {[%emt 0:15:23]} Bd6 {[%emt 0:04:10]} 14. Be3 {[%emt 0:06:47]} O-O {[%emt 0:16:54]} 15. Bh6 {[%emt 0:03:36]} Ne8 {[%emt 0:00:20]} 16. h4 {[%emt 0:01:14]} b4 {[%emt 0:02:37]} 17. Nb1 {[%emt 0:02:41]} Rc8 {[%emt 0:03:02]} 18. Rd2 {[%emt 0:00:42]} f5 {[%emt 0:03:14]} 19. h5 {[%emt 0:03:04]} f4 {[%emt 0:01:08]} 20. Qg4 {[%emt 0:00:46]} Kh8 {[%emt 0:07:24]} 21. Bxg7+ {[%emt 0:04:48]} Nxg7 {[%emt 0:00:06]} 22. h6 {[%emt 0:00:06]} Ne8 {[%emt 0:00:19]} 23. Bxa6 {[%emt 0:03:29]} Ra8 {[%emt 0:00:37]} 24. Bc4 {[%emt 0:02:41]} Rg8 {[%emt 0:09:25]} 25. Qh4 {[%emt 0:02:23]} Bc5 {[%emt 0:04:08]} 26. Kd1 {[%emt 0:02:11]} Be3 {[%emt 0:08:23]} 27. Rd3 {[%emt 0:07:55]} Qxc4 {[%emt 0:03:01]} 28. Rxd7 {[%emt 0:00:13]} Rxg2 {[%emt 0:00:57]} 29. Nd2 {[%emt 0:00:04]} Qxa2 {[%emt 0:06:10]} 30. c4 {[%emt 0:02:59]} Qxc4 {[%emt 0:04:55]} 31. Rxh7+ {[%emt 0:00:19]} Kxh7 {[%emt 0:00:09]} 32. Qe7+ {[%emt 0:02:29]} Kg6 {[%emt 0:00:39]} 0-1